bitfinex/quotes_SOLUSD_20241209
["timestamp","ask_amount","ask_price","bid_price","bid_amount"]
[1733783165037,23.776884,215.31,215.08,18.590236]
[1733783165229,23.776884,215.31,215.22,46.95825957]
[1733783165230,8.96038909,215.26,215.22,46.95825957]
[1733783165526,8.96038909,215.52,215.24,46.95825957]
[1733783165701,8.96038909,215.39,215.29,46.95825957]
[1733783166026,8.96038909,215.34,215.07,11.6591]
[1733783166198,8.96038909,215.38,215.1,1.03961091]
[1733783166399,46.95825957,215.6,215.07,11.6591]
[1733783166400,8.96038909,215.35,215.08,11.6235]
[1733783166595,8.96038909,215.36,215.14,1.03961091]
[1733783166796,8.96038909,215.39,215.3,46.95825957]
[1733783167016,20.0,215.36,215.28,46.95825957]
[1733783167240,8.96038909,215.39,215.07,11.6591]
[1733783167241,8.96038909,215.3,215.22,312.0]
[1733783167528,0.12549,215.26,215.17,46.95825957]
[1733783167839,8.96038909,215.2,215.19,46.95825957]
[1733783168002,8.96038909,215.26,215.19,46.95825957]
[1733783168201,8.96038909,215.28,215.22,46.95825957]
[1733783168399,8.96038909,215.5,215.27,46.95825957]
[1733783168600,8.96038909,215.58,215.28,1.16510091]
[1733783168805,8.96038909,215.61,215.3,1.03961091]
[1733783169122,8.96038909,215.51,215.13,1.82559093]
[1733783169432,0.12549,215.41,215.14,0.12549]
[1733783169634,46.95825957,215.34,215.21,46.95825957]
[1733783169931,8.96038909,215.41,215.32,46.44663039]
[1733783170131,8.96038909,215.56,215.23,1.03961091]
[1733783170426,8.96038909,215.67,215.42,312.0]
[1733783170635,8.96038909,215.65,215.43,0.12549]
[1733783170805,8.96038909,215.48,215.23,34.8459]
[1733783171003,46.44663039,215.51,215.37,46.44663039]
[1733783171205,10.0,215.73,215.52,20.0]
[1733783171413,46.44663039,215.74,215.6,46.44663039]
[1733783171700,8.96038909,215.61,215.56,46.44663039]
[1733783171920,8.96038909,215.71,215.46,20.0]
[1733783172124,8.96038909,215.73,215.46,20.0]
[1733783172339,1.1585,215.8,215.46,20.0]
[1733783172340,8.96038909,215.62,215.46,20.0]
[1733783172531,8.96038909,215.62,215.42,0.12549]
[1733783172839,8.96038909,215.58,215.32,23.776884]
[1733783173012,8.96038909,215.49,215.39,46.44663039]
[1733783173209,8.96038909,215.37,215.31,16.66020168]
[1733783173432,8.96038909,215.42,215.32,46.44663039]
[1733783173624,8.96038909,215.38,215.32,46.44663039]
[1733783173931,8.96038909,215.38,215.15,22.23119051]
[1733783173932,8.96038909,215.26,215.15,22.23119051]
[1733783174107,23.776884,215.4,215.15,22.23119051]
[1733783174628,8.96038909,215.6,215.41,0.12549]
[1733783174834,8.96038909,215.63,215.4,0.13935696]
[1733783175006,8.96038909,215.43,215.4,0.13935696]
[1733783175337,8.96038909,215.24,215.15,22.23119051]
[1733783175508,8.96038909,215.35,215.15,22.23119051]
[1733783175704,8.96038909,215.27,215.14,18.593533]
[1733783176006,28.96038909,215.14,214.96,11.6591]
[1733783176206,8.96038909,215.08,214.92,10.0]
[1733783176428,23.776884,215.28,214.98,1.03961091]
[1733783176629,8.96038909,215.39,214.98,10.0]
[1733783176831,8.96038909,215.45,215.1,1.03961091]
[1733783177029,8.96038909,215.54,215.44,312.0]
[1733783177328,8.96038909,215.63,215.51,46.44663039]
[1733783177534,28.67737255,215.85,215.32,46.44663039]
[1733783177535,8.96038909,215.7,215.38,70.0]
[1733783177835,8.96038909,215.65,215.48,23.902374]
[1733783178011,8.96038909,215.77,215.59,20.0]
[1733783178212,8.96038909,215.71,215.48,7.3093]
[1733783178517,8.96038909,215.47,215.18,1.85984832]
[1733783178708,8.96038909,215.44,215.35,46.44663039]
[1733783178907,8.96038909,215.54,215.42,46.44663039]
[1733783179109,8.96038909,215.65,215.53,46.44663039]
[1733783179304,8.96038909,215.67,215.43,1.03961091]
[1733783179542,10.0,215.95,215.32,46.44663039]
[1733783179543,0.96038909,215.83,215.53,9.03961091]
[1733783179835,10.0,216.04,215.52,22.18735743]
[1733783179836,0.96038909,215.78,215.52,22.18735743]
[1733783180133,0.96038909,215.76,215.56,0.12549]
[1733783180429,0.96038909,215.83,215.71,312.0]
[1733783180639,0.96038909,215.83,215.79,46.44663039]
[1733783180932,0.96038909,215.74,215.71,312.0]
[1733783181114,0.96038909,215.74,215.67,46.44663039]
[1733783181323,0.96038909,215.69,215.67,46.44663039]
[1733783181621,0.96038909,215.75,215.67,46.44663039]
[1733783181808,1.158,215.88,215.67,46.44663039]
[1733783181809,0.96038909,215.76,215.67,46.28805166]
[1733783182009,0.96038909,215.74,215.69,46.28805166]
[1733783182209,0.96038909,215.74,215.53,47.05465258]
[1733783182210,0.96038909,215.82,215.74,0.12549]
[1733783182415,0.96038909,215.88,215.74,23.902374]
[1733783182836,0.96038909,215.88,215.67,23.776884]
[1733783183036,1.1624917,215.9,215.85,20.0]
[1733783183236,0.1624917,215.9,215.68,18.9684]
[1733783183444,0.1624917,215.9,215.89,46.28805166]
[1733783183647,0.96038909,215.89,215.83,46.28805166]
[1733783183849,0.96038909,215.88,215.81,46.28805166]
[1733783184143,0.1624917,215.9,215.88,0.12549]
[1733783184444,0.1624917,215.9,215.87,312.0]
[1733783184636,0.02346437,215.9,215.72,20.0]
[1733783184839,0.02346437,215.9,215.68,18.9684]
[1733783184840,0.96038909,215.82,215.71,20.0]
[1733783185035,0.96038909,215.89,215.81,46.28805166]
[1733783185245,0.96038909,215.81,215.73,46.28805166]
[1733783185445,0.96038909,215.75,215.7,46.28805166]
[1733783185620,0.96038909,215.74,215.7,46.28805166]
[1733783185971,0.96038909,215.68,215.52,34.51505743]
[1733783186147,0.96038909,215.74,215.52,34.51505743]
[1733783186638,0.96038909,215.75,215.53,18.552639]
[1733783186846,0.96038909,215.76,215.53,18.552639]
[1733783187032,23.776884,215.75,215.66,46.28805166]
[1733783187343,0.86862213,215.87,215.53,18.552639]
[1733783187344,0.96038909,215.79,215.74,46.28805166]
[1733783187641,0.02346437,215.9,215.78,358.28805166]
[1733783187945,0.02346437,215.9,215.78,312.0]
[1733783188137,0.96038909,215.88,215.64,7.322]
[1733783188340,0.96038909,215.82,215.68,23.776884]
[1733783188530,0.96038909,215.84,215.68,23.776884]
[1733783188726,0.96038909,215.78,215.77,46.28805166]
[1733783188929,0.96038909,215.79,215.68,46.28805166]
[1733783189138,46.28805166,215.86,215.7,46.28805166]
[1733783189443,0.96038909,215.78,215.72,46.28805166]
[1733783189644,0.96038909,215.8,215.54,23.93398098]
[1733783189844,0.96038909,215.82,215.52,104.51505743]
[1733783190046,0.96038909,215.77,215.54,0.12549]
[1733783190225,0.96038909,215.72,215.54,0.12549]
[1733783190538,0.96038909,215.75,215.52,104.51505743]
[1733783190743,0.96038909,215.78,215.72,46.28805166]
[1733783190944,0.96038909,215.73,215.68,46.28805166]
[1733783191246,0.96038909,215.53,215.36,11.734]
[1733783191547,0.96038909,215.42,215.39,18.573728]
[1733783191726,0.96038909,215.35,215.21,23.23688722]
[1733783191924,18.573728,215.61,215.26,88.573728]
[1733783192124,0.96038909,215.78,215.41,70.0]
[1733783192324,0.96038909,215.83,215.74,46.28805166]
[1733783192631,46.28805166,215.97,215.82,46.28805166]
[1733783192831,0.96038909,215.98,215.87,46.28805166]
[1733783193152,0.96038909,216.0,215.87,46.28805166]
[1733783193327,0.8679758,216.15,215.65,41.91726151]
[1733783193328,0.96038909,215.91,215.69,43.902374]
[1733783193533,0.96038909,215.85,215.74,0.12549]
[1733783193747,10.86833823,216.06,215.74,0.12549]
[1733783193748,0.96038909,215.89,215.74,0.12549]
[1733783193925,28.67737255,216.14,215.81,20.0]
[1733783193926,0.96038909,215.93,215.81,20.0]
[1733783194127,0.96038909,215.99,215.89,312.0]
[1733783194425,1.1572,216.03,215.65,7.322]
[1733783194426,0.96038909,215.93,215.88,46.28805166]
[1733783194642,0.96038909,215.96,215.88,46.28805166]
[1733783194849,0.96038909,215.94,215.88,46.28805166]
[1733783195038,46.28805166,216.02,215.88,46.28805166]
[1733783195039,0.96038909,215.91,215.88,46.28805166]
[1733783195240,0.96038909,215.97,215.88,46.28805166]
[1733783195435,0.96038909,215.93,215.88,46.28805166]
[1733783195633,0.96038909,215.97,215.88,46.28805166]
[1733783195837,0.96038909,215.97,215.89,0.12549]
[1733783196142,0.96038909,215.95,215.88,46.28805166]
[1733783196326,0.96038909,215.93,215.88,66.28805166]
[1733783196654,0.96038909,215.91,215.88,66.28805166]
[1733783196951,0.96038909,215.95,215.88,66.28805166]
[1733783197130,20.86789639,216.16,215.88,66.28805166]
[1733783197131,0.96038909,215.91,215.88,66.28805166]
[1733783197339,0.96038909,215.91,215.89,312.0]
[1733783197657,0.96038909,215.92,215.86,46.28805166]
[1733783197841,0.96038909,215.81,215.8,46.28805166]
[1733783198163,23.776884,215.84,215.8,46.28805166]
[1733783198342,0.96038909,215.91,215.83,46.28805166]
[1733783198662,0.96038909,215.98,215.89,46.28805166]
[1733783198875,0.96038909,215.87,215.86,46.28805166]
[1733783199364,0.96038909,215.98,215.86,46.28805166]
[1733783199665,0.96038909,215.93,215.89,46.28805166]
[1733783199969,0.98385346,215.9,215.89,46.28805166]
[1733783200266,0.02346437,215.9,215.89,46.28805166]
[1733783200431,0.02346437,215.9,215.71,23.16386378]
[1733783200432,0.02346437,215.9,215.87,46.28805166]
[1733783200639,0.02346437,215.9,215.89,46.28805166]
[1733783201040,0.02346437,215.9,215.65,77.322]
[1733783201041,0.96038909,215.88,215.87,46.28805166]
[1733783201545,0.02346437,215.9,215.87,46.28805166]
[1733783201756,0.96038909,215.91,215.87,46.28805166]
[1733783201942,0.12549,215.93,215.87,46.28805166]
[1733783202255,0.96038909,215.87,215.66,23.34291478]
[1733783202466,0.96038909,215.87,215.86,46.28805166]
[1733783202642,0.96038909,215.92,215.86,46.28805166]
[1733783202851,0.96038909,215.89,215.85,46.28805166]
[1733783203047,0.96038909,215.87,215.85,46.28805166]
[1733783203446,0.12549,215.86,215.85,46.28805166]
[1733783203647,0.96038909,215.87,215.83,46.28805166]
[1733783203849,0.96038909,215.86,215.85,46.28805166]
[1733783204052,0.96038909,215.87,215.83,46.28805166]
[1733783204680,0.96038909,215.87,215.85,46.28805166]
[1733783204961,0.96038909,215.97,215.85,46.28805166]
[1733783205169,0.96038909,215.91,215.85,46.28805166]
[1733783205461,0.96038909,215.91,215.87,46.28805166]
[1733783205654,0.96038909,215.91,215.89,46.28805166]
[1733783206462,0.96038909,215.9,215.89,46.28805166]
[1733783206666,0.96038909,215.92,215.89,46.28805166]
[1733783206849,0.96038909,215.92,215.91,46.28805166]
[1733783207566,0.96038909,215.92,215.89,46.28805166]
[1733783207747,0.96038909,215.92,215.91,46.28805166]
[1733783209069,0.96038909,215.98,215.94,20.0]
[1733783209243,0.96038909,215.99,215.97,46.28805166]
[1733783209444,0.96038909,215.97,215.96,46.28805166]
[1733783209847,0.96038909,216.06,215.96,46.28805166]
[1733783210048,0.96038909,216.04,216.01,22.51805166]
[1733783210352,0.96038909,215.98,215.97,46.28805166]
[1733783211042,0.96038909,215.95,215.79,23.10746609]
[1733783211243,0.96038909,215.98,215.94,46.28805166]
[1733783211466,0.96038909,215.98,215.79,23.10746609]
[1733783211467,0.96038909,215.98,215.96,46.28805166]
[1733783211668,0.96038909,216.07,215.96,46.28805166]
[1733783211971,0.96038909,216.01,215.77,20.43457058]
[1733783212352,0.96038909,215.97,215.77,20.43457058]
[1733783212556,0.96038909,215.99,215.77,100.43457058]
[1733783212778,0.96038909,216.0,215.81,0.12549]
[1733783213068,0.96038909,216.01,215.99,46.28805166]
[1733783213268,0.96038909,216.01,216.0,46.28805166]
[1733783213771,0.96038909,216.13,216.0,46.28805166]
[1733783213973,0.96038909,216.08,216.05,46.28805166]
[1733783214156,16.63574776,216.17,215.88,46.28805166]
[1733783214157,0.96038909,216.03,216.02,46.28805166]
[1733783214351,0.96038909,216.08,216.02,46.28805166]
[1733783214545,0.96038909,216.08,216.05,46.28805166]
[1733783214762,0.96038909,216.11,216.05,46.28805166]
[1733783214964,7.59613685,216.17,216.05,46.28805166]
[1733783215275,7.59613685,216.17,216.16,46.28805166]
[1733783215472,7.59613685,216.17,216.07,46.28805166]
[1733783215678,7.59613685,216.17,216.0,20.0]
[1733783216065,7.59613685,216.17,216.04,20.0]
[1733783216258,7.59613685,216.17,216.08,20.0]
[1733783216476,7.59613685,216.17,216.04,20.0]
[1733783216678,0.59613685,216.17,216.16,46.28805166]
[1733783216977,0.59613685,216.17,216.16,358.28805166]
[1733783217355,0.59613685,216.17,216.16,46.28805166]
[1733783218052,1.04107747,216.24,216.19,20.0]
[1733783218381,1.04107747,216.24,216.23,66.28805166]
[1733783218546,1.04107747,216.24,216.23,46.28805166]
[1733783220179,1.04107747,216.24,216.06,1.88861865]
[1733783220483,23.776884,216.23,216.13,46.28805166]
[1733783220681,0.12549,216.18,216.15,46.28805166]
[1733783220883,1.04107747,216.24,216.17,46.28805166]
[1733783221064,23.776884,216.23,215.97,7.683]
[1733783221266,23.776884,216.23,216.11,46.28805166]
[1733783221681,3.06433471,216.24,215.97,9.56101261]
[1733783221682,23.776884,216.19,216.15,46.28805166]
[1733783221862,1.04107747,216.24,216.17,46.28805166]
[1733783222058,23.776884,216.23,216.17,46.28805166]
[1733783222362,1.04107747,216.24,216.21,46.28805166]
[1733783222760,1.04107747,216.24,216.18,46.28805166]
[1733783222963,1.04107747,216.24,216.22,46.28805166]
[1733783223161,0.12549,216.23,216.22,46.28805166]
[1733783223363,0.12549,216.23,216.18,46.28805166]
[1733783223576,1.04107747,216.24,216.2,46.28805166]
[1733783223959,1.04107747,216.24,216.22,46.28805166]
[1733783224571,1.04107747,216.24,216.05,23.96507665]
[1733783224760,1.04107747,216.24,216.23,46.28805166]
[1733783225273,1.04107747,216.24,216.09,1.85493983]
[1733783225488,1.04107747,216.24,216.02,20.0]
[1733783225982,0.12549,216.23,216.18,46.28805166]
[1733783226355,23.902374,216.23,216.16,46.28805166]
[1733783226861,23.902374,216.23,216.12,46.28805166]
[1733783227158,0.12549,216.15,215.69,23.38757442]
[1733783227361,30.0,215.99,215.64,11.9229]
[1733783227568,10.0,215.88,215.64,11.9229]
[1733783227779,20.0,215.85,215.64,11.9229]
[1733783227981,1.1583,215.83,215.77,1.89499398]
[1733783228161,4.66844925,216.23,215.64,11.9229]
[1733783228162,10.0,216.01,215.64,11.9229]
[1733783228375,20.0,216.02,215.68,10.0]
[1733783228687,46.28805166,215.98,215.85,46.28805166]
[1733783229090,46.28805166,215.94,215.81,46.28805166]
[1733783229266,46.28805166,215.94,215.65,18.546115]
[1733783229267,46.28805166,215.89,215.76,46.28805166]
[1733783229460,46.28805166,215.89,215.65,18.546115]
[1733783229461,23.776884,215.9,215.65,18.546115]
[1733783229672,23.776884,215.88,215.65,18.546115]
[1733783229874,23.776884,215.86,215.66,312.0]
[1733783230073,0.86866799,215.92,215.66,312.0]
[1733783230286,1.1572,216.03,215.69,10.0]
[1733783230490,46.28805166,216.11,215.83,23.03020237]
[1733783230659,46.28805166,216.2,216.06,46.28805166]
[1733783231161,46.28805166,216.14,216.01,46.28805166]
[1733783231479,2.02371548,216.21,215.95,11.9229]
[1733783231679,10.0,216.2,215.95,11.9229]
[1733783231890,0.86740379,216.19,215.95,11.9229]
[1733783232081,10.0,216.17,215.84,21.87889682]
[1733783232264,46.28805166,215.94,215.83,46.28805166]
[1733783232466,46.28805166,215.94,215.81,46.28805166]
[1733783232668,46.28805166,215.94,215.79,22.15837826]
[1733783232669,46.28805166,216.03,215.89,46.28805166]
[1733783232879,46.28805166,215.97,215.85,46.28805166]
[1733783233187,0.86795388,216.02,215.79,22.15837826]
[1733783233188,0.12549,215.96,215.79,22.15837826]
[1733783233995,23.902374,215.96,215.79,22.15837826]
[1733783234168,43.902374,215.88,215.78,46.28805166]
[1733783234766,20.0,215.94,215.84,46.28805166]
[1733783234973,20.0,215.9,215.82,46.28805166]
[1733783235172,23.776884,215.89,215.78,46.28805166]
[1733783235486,20.0,215.9,215.8,46.28805166]
[1733783235786,0.86841543,215.89,215.78,46.28805166]
[1733783235990,20.0,215.9,215.8,46.28805166]
[1733783236176,0.12549,215.89,215.8,46.28805166]
[1733783236364,0.12549,215.87,215.8,46.28805166]
[1733783236566,0.12549,215.87,215.78,46.28805166]
[1733783237065,46.28805166,215.93,215.82,46.28805166]
[1733783237364,0.99387744,215.92,215.82,46.28805166]
[1733783237585,0.99395581,215.92,215.8,46.28805166]
[1733783237789,0.12549,215.87,215.75,46.28805166]
[1733783237991,0.12549,215.85,215.73,46.28805166]
[1733783238286,46.28805166,215.84,215.73,46.28805166]
[1733783238535,46.28805166,215.8,215.69,46.28805166]
[1733783238665,23.902374,215.69,215.57,46.28805166]
[1733783238872,46.28805166,215.72,215.61,46.28805166]
[1733783239092,23.776884,215.69,215.59,46.28805166]
[1733783239275,23.776884,215.69,215.52,11.9229]
[1733783239276,46.28805166,215.68,215.57,46.28805166]
[1733783239999,46.28805166,215.65,215.54,312.0]
[1733783240167,10.0,215.78,215.52,30.49045]
[1733783240168,23.776884,215.66,215.55,46.28805166]
[1733783240364,20.0,215.67,215.58,46.28805166]
[1733783240567,46.28805166,215.72,215.6,46.28805166]
[1733783240787,0.12549,215.71,215.58,46.28805166]
[1733783240986,23.776884,215.67,215.56,46.28805166]
[1733783241196,46.28805166,215.68,215.56,46.28805166]
[1733783241393,1.84961425,215.89,215.62,46.28805166]
[1733783241394,46.28805166,215.74,215.62,46.28805166]
[1733783241569,46.28805166,215.7,215.58,46.28805166]
[1733783241774,46.28805166,215.7,215.56,46.28805166]
[1733783241969,46.28805166,215.68,215.54,46.28805166]
[1733783242164,46.28805166,215.66,215.54,46.28805166]
[1733783242394,1.1586,215.76,215.35,47.65323545]
[1733783242395,46.28805166,215.62,215.5,46.28805166]
[1733783242691,23.776884,215.57,215.46,46.28805166]
[1733783242880,46.28805166,215.6,215.48,46.28805166]
[1733783243066,46.28805166,215.6,215.36,13.75777645]
[1733783243067,23.776884,215.61,215.5,46.28805166]
[1733783243273,69.54554059,215.65,215.53,69.54554059]
[1733783243597,69.54554059,215.69,215.57,69.54554059]
[1733783243771,69.54554059,215.71,215.59,69.54554059]
[1733783243977,69.54554059,215.64,215.52,69.54554059]
[1733783244280,69.54554059,215.61,215.5,69.54554059]
[1733783244472,69.54554059,215.63,215.52,69.54554059]
[1733783244670,69.54554059,215.63,215.5,69.54554059]
[1733783244671,0.86955271,215.62,215.5,69.54554059]
[1733783244888,0.12549,215.6,215.48,69.54554059]
[1733783245089,24.64663479,215.6,215.48,69.54554059]
[1733783245276,20.0,215.54,215.46,69.54554059]
[1733783245599,2.3165,215.84,215.52,69.54554059]
[1733783245791,2.3165,215.84,215.49,18.569173]
[1733783245792,10.86911553,215.83,215.49,18.569173]
[1733783246294,10.0,215.76,215.49,18.569173]
[1733783246601,10.0,215.78,215.49,18.569173]
[1733783246602,10.0,215.71,215.49,18.569173]
[1733783246769,69.54554059,215.6,215.48,69.54554059]
[1733783246968,69.54554059,215.62,215.51,69.54554059]
[1733783247172,23.776884,215.61,215.49,69.54554059]
[1733783247374,0.12549,215.6,215.49,69.54554059]
[1733783247589,23.776884,215.58,215.49,69.54554059]
[1733783247795,69.54554059,215.58,215.47,69.54554059]
[1733783247971,69.54554059,215.63,215.51,69.54554059]
[1733783248181,69.54554059,215.71,215.58,69.54554059]
[1733783248387,0.86937788,215.7,215.58,69.54554059]
[1733783248703,69.54554059,215.65,215.54,69.54554059]
[1733783249506,0.12549,215.62,215.51,69.54554059]
[1733783249689,69.54554059,215.67,215.55,69.54554059]
[1733783249893,70.4150072,215.75,215.65,69.54554059]
[1733783250096,69.54554059,215.8,215.68,69.54554059]
[1733783250292,69.54554059,215.82,215.7,69.54554059]
[1733783250489,69.54554059,215.8,215.68,69.54554059]
[1733783250691,69.54554059,215.82,215.7,69.54554059]
[1733783250896,69.54554059,215.86,215.74,69.54554059]
[1733783251090,69.54554059,215.86,215.6,69.54554059]
[1733783251091,0.86867148,215.95,215.84,69.54554059]
[1733783251405,0.86828374,215.98,215.72,20.0]
[1733783251607,0.86828374,215.98,215.69,23.776884]
[1733783251781,0.86828374,215.98,215.68,12.4119]
[1733783252102,0.86828374,215.98,215.63,20.0]
[1733783252287,14.34124642,215.97,215.63,20.0]
[1733783252490,69.54554059,215.9,215.77,69.54554059]
[1733783252690,0.86861611,215.89,215.77,69.54554059]
[1733783252889,0.86861611,215.89,215.8,69.54554059]
[1733783253082,0.86855012,215.92,215.8,69.54554059]
[1733783253290,69.54554059,215.9,215.78,69.54554059]
[1733783253557,0.86861493,215.89,215.76,69.54554059]
[1733783253703,69.67103059,215.88,215.74,69.54554059]
[1733783253880,0.12549,215.86,215.74,69.54554059]
[1733783254076,69.54554059,215.92,215.79,69.54554059]
[1733783254276,0.86859799,215.91,215.79,69.54554059]
[1733783255016,0.12549,215.9,215.79,69.54554059]
[1733783255308,23.902374,215.88,215.79,69.54554059]
[1733783255511,2.3151,215.97,215.83,69.54554059]
[1733783255512,69.54554059,215.94,215.83,69.54554059]
[1733783255691,70.41405829,216.08,215.93,69.54554059]
[1733783255893,0.8685177,216.08,216.0,69.54554059]
[1733783256202,69.54554059,216.11,215.98,69.54554059]
[1733783256397,69.54554059,216.09,215.96,69.54554059]
[1733783256582,69.54554059,216.11,215.98,69.54554059]
[1733783256781,0.86780021,216.1,215.98,69.54554059]
[1733783257000,0.86780021,216.1,216.0,69.54554059]
[1733783257308,0.86779841,216.09,215.98,69.54554059]
[1733783257514,70.413339,216.09,215.96,69.54554059]
[1733783257814,69.54554059,216.15,216.04,69.54554059]
[1733783257984,69.54554059,216.18,216.06,69.54554059]
[1733783258303,0.86756327,216.17,216.06,69.54554059]
[1733783258515,69.54554059,216.18,216.06,69.54554059]
[1733783258802,0.12549,216.15,216.04,69.54554059]
[1733783259007,69.54554059,216.18,216.04,69.54554059]
[1733783259185,69.54554059,216.2,216.08,69.54554059]
[1733783259386,0.86733194,216.19,216.08,69.54554059]
[1733783259689,0.86733194,216.19,215.98,312.0]
[1733783259881,36.7618268,216.19,216.07,36.7618268]
[1733783260078,1.1562,216.23,215.98,312.0]
[1733783260079,36.7618268,216.17,216.05,36.7618268]
[1733783260316,0.86750166,216.16,216.05,36.7618268]
[1733783260600,1.04107747,216.24,216.07,36.7618268]
[1733783260601,36.7618268,216.19,216.07,36.7618268]
[1733783260816,0.86741205,216.18,216.07,36.7618268]
[1733783261111,0.86743639,216.18,216.07,36.7618268]
[1733783261311,0.12549,216.17,216.07,36.7618268]
[1733783261810,36.8873168,216.17,216.05,36.7618268]
[1733783262016,36.7618268,216.13,216.0,36.7618268]
[1733783262214,24.64463606,216.12,216.0,36.7618268]
[1733783262396,24.64463606,216.12,215.98,36.7618268]
[1733783262397,0.12549,216.09,215.98,36.7618268]
[1733783262595,0.12549,216.09,215.82,36.7618268]
[1733783262596,0.12549,216.05,215.96,36.7618268]
[1733783262907,60.5387108,216.05,215.94,36.7618268]
[1733783263110,0.86805459,216.04,215.92,36.7618268]
[1733783263312,23.776884,216.01,215.92,36.7618268]
[1733783263523,0.12549,215.98,215.92,36.7618268]
[1733783263698,0.12549,215.89,215.77,18.549221]
[1733783263898,0.8688637,215.89,215.79,36.7618268]
[1733783264104,43.776884,215.87,215.77,36.7618268]
[1733783264404,0.86876162,215.86,215.72,18.553601]
[1733783264608,0.86876162,215.86,215.71,36.7618268]
[1733783264811,23.776884,215.89,215.72,18.552946]
[1733783265014,0.12549,215.83,215.72,18.552946]
[1733783265217,0.86896157,215.91,215.67,12.3862]
[1733783265522,0.12549,215.88,215.77,36.7618268]
[1733783265689,23.902374,215.84,215.73,36.7618268]
[1733783265894,0.12549,215.8,215.73,36.7618268]
[1733783266094,0.12549,215.78,215.73,36.7618268]
[1733783266323,0.12549,215.78,215.66,18.558446]
[1733783266625,36.7618268,215.73,215.66,18.558446]
[1733783266916,23.776884,215.71,215.6,36.7618268]
[1733783267122,23.776884,215.69,215.6,36.7618268]
[1733783267416,0.86939844,215.68,215.6,36.7618268]
[1733783267597,0.86943933,215.72,215.64,36.7618268]
[1733783267797,60.5387108,215.73,215.62,36.7618268]
[1733783267994,36.7618268,215.75,215.64,36.7618268]
[1733783268199,37.63105725,215.79,215.66,36.7618268]
[1733783268393,2.72601768,215.92,215.72,36.7618268]
[1733783268627,0.86908347,215.92,215.78,36.7618268]
[1733783268925,36.7618268,215.89,215.78,36.7618268]
[1733783269102,0.86876012,215.88,215.76,36.7618268]
[1733783269295,36.7618268,215.89,215.76,36.7618268]
[1733783269492,0.86860212,215.88,215.76,36.7618268]
[1733783269696,0.86865328,215.92,215.82,36.7618268]
[1733783270020,36.7618268,215.91,215.78,36.7618268]
[1733783270204,36.7618268,215.85,215.56,23.776884]
[1733783270396,0.12549,215.8,215.7,36.7618268]
[1733783270599,36.7618268,215.79,215.67,36.7618268]
[1733783270805,36.7618268,215.81,215.69,36.7618268]
[1733783271119,36.7618268,215.73,215.61,36.7618268]
[1733783271427,20.0,215.69,215.61,36.7618268]
[1733783271618,0.12549,215.68,215.61,36.7618268]
[1733783271927,20.0,215.69,215.62,36.7618268]
[1733783272098,0.86930475,215.81,215.68,36.7618268]
[1733783272297,37.63066614,215.93,215.8,36.7618268]
[1733783272499,0.86860811,216.03,215.85,36.7618268]
[1733783272723,36.7618268,215.97,215.85,36.7618268]
[1733783272923,0.86834004,215.96,215.85,36.7618268]
[1733783273135,36.7618268,215.95,215.83,36.7618268]
[1733783273316,36.7618268,215.99,215.85,36.7618268]
[1733783273504,36.7618268,215.95,215.83,36.7618268]
[1733783273704,0.12549,215.93,215.83,36.7618268]
[1733783274104,36.7618268,215.99,215.87,36.7618268]
[1733783274303,0.86833468,216.07,215.97,36.7618268]
[1733783274504,0.86833468,216.07,215.91,36.7618268]
[1733783274505,36.7618268,216.04,215.91,36.7618268]
[1733783274728,36.7618268,216.02,215.89,36.7618268]
[1733783274917,0.86827092,216.01,215.82,36.7618268]
[1733783275428,0.86827011,216.05,215.82,36.7618268]
[1733783275918,36.7618268,215.99,215.87,36.7618268]
[1733783276231,0.86845079,215.98,215.88,36.7618268]
[1733783276533,0.86845079,215.98,215.72,7.8639]
[1733783276534,37.63027759,215.98,215.86,36.7618268]
[1733783276703,37.63027759,215.98,215.82,36.7618268]
[1733783276704,0.12549,215.93,215.82,36.7618268]
[1733783276900,20.0,215.91,215.82,36.7618268]
[1733783277108,0.12549,215.88,215.76,36.7618268]
[1733783277307,0.12549,215.77,215.7,36.7618268]
[1733783277510,20.0,215.76,215.66,36.7618268]
[1733783277702,23.776884,215.72,215.57,18.566218]
[1733783277924,23.776884,215.7,215.57,18.566218]
[1733783278119,23.776884,215.68,215.61,36.7618268]
[1733783278314,0.12549,215.63,215.57,36.7618268]
[1733783278706,43.776884,215.61,215.55,36.7618268]
[1733783278927,23.902374,215.55,215.36,12.0177]
[1733783279115,20.0,215.48,215.39,36.7618268]
[1733783279334,0.12549,215.46,215.39,36.7618268]
[1733783279809,20.12549,215.46,215.37,36.7618268]
[1733783280009,23.776884,215.44,215.37,36.7618268]
[1733783280209,0.87047386,215.45,215.37,36.7618268]
[1733783280425,23.776884,215.44,215.37,36.7618268]